[Event "Late-Titled-Tuesday-Blitz-February-20-2024"]
[Site "Chess.com"]
[Date "2024.02.20"]
[Round "7"]
[White "Josetricks"]
[Black "TokChess"]
[Result "0-1"]
[WhiteElo "2403"]
[BlackElo "2559"]
[TimeControl "180+1"]
[EndTime "15:14:58 PST"]
[Termination "TokChess won by resignation"]

1. c4 {[%clk 0:03:00.9]} 1... Nf6 {[%clk 0:02:58.6]} 2. g3 {[%clk 0:03:00.3]}
2... g6 {[%clk 0:02:58.1]} 3. Bg2 {[%clk 0:03:00.6]} 3... Bg7 {[%clk 0:02:59]}
4. b3 {[%clk 0:03:01.1]} 4... O-O {[%clk 0:02:59.9]} 5. Bb2 {[%clk 0:03:01.7]}
5... a5 {[%clk 0:03:00.5]} 6. a3 {[%clk 0:02:59.4]} 6... d6 {[%clk 0:03:00.5]}
7. Nf3 {[%clk 0:02:59.2]} 7... e5 {[%clk 0:03:00.7]} 8. O-O {[%clk 0:02:59]}
8... Re8 {[%clk 0:03:01.2]} 9. Nc3 {[%clk 0:02:57.7]} 9... Nbd7 {[%clk
0:03:00.8]} 10. d4 {[%clk 0:02:57.9]} 10... e4 {[%clk 0:02:57.7]} 11. Ne1 {[%clk
0:02:49.1]} 11... h5 {[%clk 0:02:47.2]} 12. Nc2 {[%clk 0:02:44]} 12... Nb6
{[%clk 0:02:37.4]} 13. a4 {[%clk 0:02:29.7]} 13... c6 {[%clk 0:02:28.6]} 14. Ne3
{[%clk 0:02:27.2]} 14... d5 {[%clk 0:02:27.2]} 15. cxd5 {[%clk 0:02:22.8]} 15...
Nbxd5 {[%clk 0:02:21.2]} 16. Nexd5 {[%clk 0:02:09.6]} 16... cxd5 {[%clk
0:02:19.1]} 17. Nb5 {[%clk 0:02:09.7]} 17... e3 {[%clk 0:01:41.3]} 18. fxe3
{[%clk 0:01:59.1]} 18... Ng4 {[%clk 0:01:33.8]} 19. Qc1 {[%clk 0:01:45.5]} 19...
Nxe3 {[%clk 0:01:30.2]} 20. Nc7 {[%clk 0:01:34.9]} 20... Nxf1 {[%clk 0:01:25.1]}
21. Nxa8 {[%clk 0:01:25.3]} 21... Ne3 {[%clk 0:01:20.2]} 22. Nc7 {[%clk
0:01:21.6]} 22... Nxg2 {[%clk 0:01:14.9]} 23. Nxe8 {[%clk 0:01:17.3]} 23... Qxe8
{[%clk 0:01:15.1]} 24. Kxg2 {[%clk 0:01:16.6]} 24... Qxe2+ {[%clk 0:01:14.1]}
25. Kg1 {[%clk 0:01:11.8]} 25... Bh3 {[%clk 0:01:10.4]} 0-1

[Event "Late-Titled-Tuesday-Blitz-February-20-2024"]
[Site "Chess.com"]
[Date "2024.02.20"]
[Round "7"]
[White "mishanick"]
[Black "mirciulica14"]
[Result "1-0"]
[WhiteElo "2992"]
[BlackElo "2650"]
[TimeControl "180+1"]
[EndTime "15:15:20 PST"]
[Termination "mishanick won by checkmate"]

1. d4 {[%clk 0:03:00.9]} 1... g6 {[%clk 0:02:58.8]} 2. e4 {[%clk 0:03:00.6]}
2... c6 {[%clk 0:02:59.1]} 3. f4 {[%clk 0:02:56.9]} 3... d5 {[%clk 0:02:58.9]}
4. e5 {[%clk 0:02:57.1]} 4... Nh6 {[%clk 0:02:56.6]} 5. Nf3 {[%clk 0:02:56.5]}
5... f6 {[%clk 0:02:47.6]} 6. Bd3 {[%clk 0:02:55.4]} 6... Bg7 {[%clk 0:02:14.4]}
7. O-O {[%clk 0:02:55.2]} 7... O-O {[%clk 0:02:12.9]} 8. Nc3 {[%clk 0:02:55.8]}
8... Bg4 {[%clk 0:01:57]} 9. h3 {[%clk 0:02:53]} 9... Bxf3 {[%clk 0:01:57]} 10.
Rxf3 {[%clk 0:02:53.9]} 10... e6 {[%clk 0:01:40.1]} 11. Ne2 {[%clk 0:02:50.9]}
11... fxe5 {[%clk 0:01:37.8]} 12. dxe5 {[%clk 0:02:50.2]} 12... c5 {[%clk
0:01:33.9]} 13. c3 {[%clk 0:02:49.3]} 13... Nc6 {[%clk 0:01:31.5]} 14. Be3
{[%clk 0:02:44.6]} 14... Qe7 {[%clk 0:01:14.7]} 15. Qe1 {[%clk 0:02:37.1]} 15...
Nf5 {[%clk 0:01:06.7]} 16. Bf2 {[%clk 0:02:33]} 16... Rf7 {[%clk 0:00:28.8]} 17.
Rd1 {[%clk 0:02:32.8]} 17... Raf8 {[%clk 0:00:28.7]} 18. Bc2 {[%clk 0:02:28.8]}
18... b6 {[%clk 0:00:23]} 19. a3 {[%clk 0:02:27.9]} 19... g5 {[%clk 0:00:18.8]}
20. Ba4 {[%clk 0:02:24.3]} 20... Nb8 {[%clk 0:00:13.8]} 21. fxg5 {[%clk
0:02:15.3]} 21... Qxg5 {[%clk 0:00:13.5]} 22. Nf4 {[%clk 0:02:14.6]} 22... Qe7
{[%clk 0:00:11.4]} 23. Bb3 {[%clk 0:02:08.7]} 23... Nc6 {[%clk 0:00:10]} 24.
Nxe6 {[%clk 0:02:08.8]} 24... Nxe5 {[%clk 0:00:09.6]} 25. Rxf5 {[%clk
0:02:06.9]} 25... Rxf5 {[%clk 0:00:09.5]} 26. Bxd5 {[%clk 0:02:04.4]} 26... Rxf2
{[%clk 0:00:09.3]} 27. Nxf8+ {[%clk 0:02:03.5]} 27... Rf7 {[%clk 0:00:06.2]} 28.
Ne6 {[%clk 0:01:49.9]} 28... Kh8 {[%clk 0:00:05.6]} 29. Nxg7 {[%clk 0:01:47.8]}
29... Rxg7 {[%clk 0:00:06.5]} 30. Qf2 {[%clk 0:01:46.6]} 30... Rg6 {[%clk
0:00:05.9]} 31. Re1 {[%clk 0:01:45.3]} 31... Rf6 {[%clk 0:00:06.4]} 32. Qg3
{[%clk 0:01:44.6]} 32... Rf5 {[%clk 0:00:06.3]} 33. Qg8# {[%clk 0:01:44.2]} 1-0

[Event "Late-Titled-Tuesday-Blitz-February-20-2024"]
[Site "Chess.com"]
[Date "2024.02.20"]
[Round "7"]
[White "AlexTruskavetsky"]
[Black "Zhigalko_Sergei"]
[Result "1-0"]
[WhiteElo "2744"]
[BlackElo "2927"]
[TimeControl "180+1"]
[EndTime "15:15:22 PST"]
[Termination "AlexTruskavetsky won on time"]

1. d4 {[%clk 0:03:00.9]} 1... Nf6 {[%clk 0:00:36.3]} 2. c4 {[%clk 0:02:59.3]}
2... e6 {[%clk 0:00:36.2]} 3. Nc3 {[%clk 0:02:59.4]} 3... Bb4 {[%clk 0:00:36.2]}
4. e3 {[%clk 0:02:59.8]} 4... O-O {[%clk 0:00:36.5]} 5. a3 {[%clk 0:02:59]} 5...
Bxc3+ {[%clk 0:00:36.5]} 6. bxc3 {[%clk 0:02:59.9]} 6... c5 {[%clk 0:00:31.7]}
7. Bd3 {[%clk 0:02:57.7]} 7... Nc6 {[%clk 0:00:29.5]} 8. Ne2 {[%clk 0:02:57.8]}
8... e5 {[%clk 0:00:26.1]} 9. O-O {[%clk 0:02:55.3]} 9... Re8 {[%clk 0:00:20.6]}
10. d5 {[%clk 0:02:44]} 10... e4 {[%clk 0:00:20.8]} 11. Bb1 {[%clk 0:02:32.1]}
11... Ne5 {[%clk 0:00:20.3]} 12. f3 {[%clk 0:02:27.4]} 12... d6 {[%clk
0:00:18.1]} 13. fxe4 {[%clk 0:02:26.7]} 13... Nxc4 {[%clk 0:00:15.7]} 14. Ng3
{[%clk 0:02:24.4]} 14... Bg4 {[%clk 0:00:11.9]} 15. Qb3 {[%clk 0:02:23.3]} 15...
Ne5 {[%clk 0:00:09.2]} 16. c4 {[%clk 0:02:21]} 16... Rb8 {[%clk 0:00:07.4]} 17.
a4 {[%clk 0:02:20.9]} 17... a5 {[%clk 0:00:06.9]} 18. Bb2 {[%clk 0:02:20.4]}
18... b6 {[%clk 0:00:07]} 19. Bc2 {[%clk 0:02:18.8]} 19... Bc8 {[%clk 0:00:07]}
20. Bd1 {[%clk 0:02:16.3]} 20... Ba6 {[%clk 0:00:06.4]} 21. Be2 {[%clk
0:02:16.7]} 21... g6 {[%clk 0:00:04.9]} 22. Rf4 {[%clk 0:02:15.5]} 22... Nfd7
{[%clk 0:00:05.4]} 23. Raf1 {[%clk 0:02:15.9]} 23... Qg5 {[%clk 0:00:06]} 24.
Qc3 {[%clk 0:02:13.2]} 24... Re7 {[%clk 0:00:05.1]} 25. Nh1 {[%clk 0:02:09.2]}
25... Rbe8 {[%clk 0:00:05.4]} 26. h4 {[%clk 0:02:08.9]} 26... Qh6 {[%clk
0:00:05.6]} 27. Ng3 {[%clk 0:02:09.3]} 27... Qg7 {[%clk 0:00:05.2]} 28. Rg4
{[%clk 0:02:03.1]} 28... Qh6 {[%clk 0:00:04.5]} 29. Nf5 {[%clk 0:02:03]} 29...
Qf8 {[%clk 0:00:03.9]} 30. Nxd6 {[%clk 0:02:00.4]} 30... Rd8 {[%clk 0:00:02.9]}
31. Rgf4 {[%clk 0:01:57.5]} 31... f6 {[%clk 0:00:01.8]} 32. h5 {[%clk 0:01:56]}
32... Qh6 {[%clk 0:00:01.5]} 33. Rh4 {[%clk 0:01:50.7]} 33... Qg5 {[%clk
0:00:01.6]} 34. Rh3 {[%clk 0:01:51.3]} 1-0

[Event "Late-Titled-Tuesday-Blitz-February-20-2024"]
[Site "Chess.com"]
[Date "2024.02.20"]
[Round "7"]
[White "reevecanada"]
[Black "Atanejhad"]
[Result "1-0"]
[WhiteElo "2614"]
[BlackElo "2428"]
[TimeControl "180+1"]
[EndTime "15:15:23 PST"]
[Termination "reevecanada won by checkmate"]

1. e4 {[%clk 0:03:00.9]} 1... e5 {[%clk 0:02:55.4]} 2. Nf3 {[%clk 0:03:01.4]}
2... Nc6 {[%clk 0:02:55.2]} 3. d4 {[%clk 0:03:01.7]} 3... exd4 {[%clk 0:02:54]}
4. Nxd4 {[%clk 0:03:02.6]} 4... Nf6 {[%clk 0:02:53.3]} 5. Nxc6 {[%clk
0:03:02.5]} 5... bxc6 {[%clk 0:02:51.5]} 6. Nd2 {[%clk 0:03:01]} 6... Bc5 {[%clk
0:02:48.6]} 7. Be2 {[%clk 0:02:55.6]} 7... O-O {[%clk 0:02:44.2]} 8. e5 {[%clk
0:02:55.6]} 8... Nd5 {[%clk 0:02:42.6]} 9. Nb3 {[%clk 0:02:51.5]} 9... Bb6
{[%clk 0:02:42]} 10. c4 {[%clk 0:02:51.4]} 10... Qh4 {[%clk 0:02:01.1]} 11. O-O
{[%clk 0:02:39.3]} 11... Ne7 {[%clk 0:01:40.6]} 12. c5 {[%clk 0:02:33.6]} 12...
Ng6 {[%clk 0:01:40.1]} 13. cxb6 {[%clk 0:02:31.3]} 13... axb6 {[%clk 0:01:36.4]}
14. f4 {[%clk 0:02:30.7]} 14... c5 {[%clk 0:01:33.5]} 15. Bf3 {[%clk 0:02:25.1]}
15... Rb8 {[%clk 0:01:28.9]} 16. g3 {[%clk 0:02:23.4]} 16... Qe7 {[%clk
0:01:26]} 17. Re1 {[%clk 0:02:22.9]} 17... Ba6 {[%clk 0:01:14.6]} 18. Be3 {[%clk
0:02:18.6]} 18... Kh8 {[%clk 0:01:09.1]} 19. Qc2 {[%clk 0:02:15.6]} 19... f6
{[%clk 0:01:02.9]} 20. exf6 {[%clk 0:02:13.8]} 20... Qxf6 {[%clk 0:01:00.9]} 21.
Rad1 {[%clk 0:02:14.1]} 21... d6 {[%clk 0:00:58.6]} 22. Bd2 {[%clk 0:02:13.1]}
22... Qf7 {[%clk 0:00:48.8]} 23. Bc3 {[%clk 0:02:11.8]} 23... Bc4 {[%clk
0:00:49.2]} 24. Nd2 {[%clk 0:02:06.9]} 24... Be6 {[%clk 0:00:46.3]} 25. Bg2
{[%clk 0:02:04.1]} 25... Bg4 {[%clk 0:00:38.1]} 26. Bf3 {[%clk 0:02:00.2]} 26...
Bxf3 {[%clk 0:00:26.6]} 27. Nxf3 {[%clk 0:02:01.1]} 27... Nxf4 {[%clk
0:00:24.9]} 28. gxf4 {[%clk 0:01:51.4]} 28... Qxf4 {[%clk 0:00:25.8]} 29. Rf1
{[%clk 0:01:50.8]} 29... Rf5 {[%clk 0:00:19.9]} 30. Qg2 {[%clk 0:01:49.3]} 30...
Rg8 {[%clk 0:00:16.4]} 31. Kh1 {[%clk 0:01:48.7]} 31... Qh6 {[%clk 0:00:15.5]}
32. Qg3 {[%clk 0:01:47.8]} 32... Rh5 {[%clk 0:00:14.8]} 33. Rg1 {[%clk
0:01:47.8]} 33... c6 {[%clk 0:00:10.4]} 34. Rde1 {[%clk 0:01:48.3]} 34... d5
{[%clk 0:00:10]} 35. Qxg7+ {[%clk 0:01:47.8]} 35... Rxg7 {[%clk 0:00:08.7]} 36.
Re8# {[%clk 0:01:47.2]} 1-0

[Event "Late-Titled-Tuesday-Blitz-February-20-2024"]
[Site "Chess.com"]
[Date "2024.02.20"]
[Round "7"]
[White "sergiochess83"]
[Black "dropstoneDP"]
[Result "1/2-1/2"]
[WhiteElo "2918"]
[BlackElo "3009"]
[TimeControl "180+1"]
[EndTime "15:15:25 PST"]
[Termination "Game drawn by repetition"]

1. d4 {[%clk 0:02:52.1]} 1... d5 {[%clk 0:02:59.8]} 2. c4 {[%clk 0:02:49.2]}
2... dxc4 {[%clk 0:03:00.7]} 3. Nf3 {[%clk 0:02:48.3]} 3... Nf6 {[%clk
0:03:01.1]} 4. e3 {[%clk 0:02:48.7]} 4... e6 {[%clk 0:03:01.7]} 5. Bxc4 {[%clk
0:02:48.7]} 5... c5 {[%clk 0:03:02.2]} 6. O-O {[%clk 0:02:46.7]} 6... Nc6 {[%clk
0:03:02.7]} 7. dxc5 {[%clk 0:02:34.5]} 7... Qxd1 {[%clk 0:03:02.1]} 8. Rxd1
{[%clk 0:02:34.7]} 8... Bxc5 {[%clk 0:03:02.5]} 9. a3 {[%clk 0:02:34.9]} 9... a6
{[%clk 0:03:01.8]} 10. Be2 {[%clk 0:02:34.8]} 10... O-O {[%clk 0:03:01.1]} 11.
Nc3 {[%clk 0:02:32.3]} 11... b5 {[%clk 0:02:58.4]} 12. Nd2 {[%clk 0:02:31.4]}
12... Bb7 {[%clk 0:02:57.7]} 13. Nb3 {[%clk 0:02:31]} 13... Be7 {[%clk
0:02:50.5]} 14. e4 {[%clk 0:02:26]} 14... b4 {[%clk 0:02:32.9]} 15. axb4 {[%clk
0:02:08.7]} 15... Bxb4 {[%clk 0:02:33.8]} 16. f3 {[%clk 0:02:02.2]} 16... a5
{[%clk 0:02:25.4]} 17. Be3 {[%clk 0:01:53.1]} 17... Ba6 {[%clk 0:02:20.1]} 18.
Bxa6 {[%clk 0:01:47.9]} 18... Rxa6 {[%clk 0:02:21]} 19. Na4 {[%clk 0:01:37.3]}
19... Ne5 {[%clk 0:01:55.6]} 20. Rac1 {[%clk 0:01:36.9]} 20... Rc6 {[%clk
0:01:51.3]} 21. Rxc6 {[%clk 0:01:28.2]} 21... Nxc6 {[%clk 0:01:52.2]} 22. Kf1
{[%clk 0:01:28.2]} 22... h6 {[%clk 0:01:50.3]} 23. Ke2 {[%clk 0:01:27.7]} 23...
Rb8 {[%clk 0:01:50.6]} 24. Nd4 {[%clk 0:01:23.1]} 24... Nxd4+ {[%clk 0:01:49.6]}
25. Bxd4 {[%clk 0:01:21.5]} 25... Rb7 {[%clk 0:01:33.3]} 26. Rc1 {[%clk
0:01:19.1]} 26... Nd7 {[%clk 0:01:29.3]} 27. Kd3 {[%clk 0:01:07.1]} 27... f6
{[%clk 0:01:28.3]} 28. Rc6 {[%clk 0:00:59.1]} 28... Kf7 {[%clk 0:01:27.8]} 29.
f4 {[%clk 0:00:52.7]} 29... h5 {[%clk 0:01:25.6]} 30. g3 {[%clk 0:00:52.1]}
30... Ke7 {[%clk 0:01:20.5]} 31. Kc4 {[%clk 0:00:46.2]} 31... Bd6 {[%clk
0:01:15.7]} 32. Bc3 {[%clk 0:00:40.1]} 32... Bb4 {[%clk 0:01:12.8]} 33. Bd4
{[%clk 0:00:36.3]} 33... Bd6 {[%clk 0:01:13.3]} 34. Bc3 {[%clk 0:00:36.3]} 34...
Bb4 {[%clk 0:01:13.2]} 35. Bd4 {[%clk 0:00:36.3]} 1/2-1/2

[Event "Late-Titled-Tuesday-Blitz-February-20-2024"]
[Site "Chess.com"]
[Date "2024.02.20"]
[Round "7"]
[White "Shankland"]
[Black "DarkAlekhine"]
[Result "0-1"]
[WhiteElo "2937"]
[BlackElo "2860"]
[TimeControl "180+1"]
[EndTime "15:15:25 PST"]
[Termination "DarkAlekhine won by checkmate"]

1. d4 {[%clk 0:03:00.9]} 1... c5 {[%clk 0:02:59.6]} 2. d5 {[%clk 0:03:00.8]}
2... g6 {[%clk 0:02:59.9]} 3. c4 {[%clk 0:02:59.6]} 3... Bg7 {[%clk 0:02:59.4]}
4. e4 {[%clk 0:02:59.9]} 4... d6 {[%clk 0:02:59.4]} 5. Nf3 {[%clk 0:02:59.1]}
5... Nf6 {[%clk 0:02:59.5]} 6. Nc3 {[%clk 0:02:58.8]} 6... O-O {[%clk
0:02:59.5]} 7. Be2 {[%clk 0:02:59.1]} 7... e6 {[%clk 0:02:57.8]} 8. O-O {[%clk
0:02:58.8]} 8... exd5 {[%clk 0:02:58]} 9. exd5 {[%clk 0:02:59.3]} 9... Bg4
{[%clk 0:02:57]} 10. h3 {[%clk 0:02:58.8]} 10... Bxf3 {[%clk 0:02:57.1]} 11.
Bxf3 {[%clk 0:02:59.7]} 11... Nfd7 {[%clk 0:02:54.8]} 12. Bd2 {[%clk 0:02:58.1]}
12... Na6 {[%clk 0:02:52.1]} 13. Be2 {[%clk 0:02:56.9]} 13... Nc7 {[%clk
0:02:49.8]} 14. f4 {[%clk 0:02:55.5]} 14... f5 {[%clk 0:02:49.9]} 15. Bd3 {[%clk
0:02:55.1]} 15... Bd4+ {[%clk 0:02:41.6]} 16. Kh2 {[%clk 0:02:54.5]} 16... Qf6
{[%clk 0:02:40]} 17. Qf3 {[%clk 0:02:53.8]} 17... Rae8 {[%clk 0:02:38]} 18. Rae1
{[%clk 0:02:53.6]} 18... a6 {[%clk 0:02:32.5]} 19. a4 {[%clk 0:02:49.7]} 19...
Qg7 {[%clk 0:02:20]} 20. a5 {[%clk 0:02:48.3]} 20... Nf6 {[%clk 0:01:45.4]} 21.
Bc2 {[%clk 0:02:47.5]} 21... Rxe1 {[%clk 0:01:38.6]} 22. Rxe1 {[%clk 0:02:47.4]}
22... Re8 {[%clk 0:01:39.1]} 23. Rxe8+ {[%clk 0:02:44.3]} 23... Nfxe8 {[%clk
0:01:38.5]} 24. g4 {[%clk 0:02:43.4]} 24... fxg4 {[%clk 0:01:34.4]} 25. hxg4
{[%clk 0:02:42.2]} 25... Qe7 {[%clk 0:01:13.2]} 26. g5 {[%clk 0:02:41.8]} 26...
Ng7 {[%clk 0:01:11]} 27. b3 {[%clk 0:02:35.9]} 27... Nf5 {[%clk 0:01:08.6]} 28.
Ne4 {[%clk 0:02:36]} 28... Ne8 {[%clk 0:01:05.6]} 29. b4 {[%clk 0:02:26.5]}
29... cxb4 {[%clk 0:00:57]} 30. Bxb4 {[%clk 0:02:25.6]} 30... Qc7 {[%clk
0:00:56.2]} 31. Bd3 {[%clk 0:02:24]} 31... b6 {[%clk 0:00:55.1]} 32. Ng3 {[%clk
0:02:07.5]} 32... Nxg3 {[%clk 0:00:46.1]} 33. Kxg3 {[%clk 0:02:06.9]} 33... bxa5
{[%clk 0:00:46.4]} 34. Bd2 {[%clk 0:02:05.5]} 34... Ng7 {[%clk 0:00:43]} 35. Qd1
{[%clk 0:02:01.8]} 35... Qd7 {[%clk 0:00:27.1]} 36. Bc1 {[%clk 0:01:48.5]} 36...
a4 {[%clk 0:00:21.8]} 37. Bc2 {[%clk 0:01:48.7]} 37... Nh5+ {[%clk 0:00:19.9]}
38. Kh4 {[%clk 0:01:44.5]} 38... Bf2# {[%clk 0:00:18.6]} 0-1

[Event "Late-Titled-Tuesday-Blitz-February-20-2024"]
[Site "Chess.com"]
[Date "2024.02.20"]
[Round "7"]
[White "romulocardoso"]
[Black "expii"]
[Result "0-1"]
[WhiteElo "2312"]
[BlackElo "2166"]
[TimeControl "180+1"]
[EndTime "15:15:26 PST"]
[Termination "expii won by resignation"]

1. e4 {[%clk 0:03:00.9]} 1... c5 {[%clk 0:02:59.1]} 2. Nf3 {[%clk 0:02:59.6]}
2... d6 {[%clk 0:02:59.1]} 3. d4 {[%clk 0:03:00]} 3... cxd4 {[%clk 0:03:00]} 4.
Nxd4 {[%clk 0:03:00.7]} 4... Nf6 {[%clk 0:02:58.6]} 5. Nc3 {[%clk 0:02:58.3]}
5... g6 {[%clk 0:02:58.5]} 6. Be3 {[%clk 0:02:55.6]} 6... Bg7 {[%clk 0:02:58.1]}
7. f3 {[%clk 0:02:56.1]} 7... O-O {[%clk 0:02:53.1]} 8. Qd2 {[%clk 0:02:56.3]}
8... Nc6 {[%clk 0:02:50.2]} 9. O-O-O {[%clk 0:02:50.4]} 9... d5 {[%clk 0:02:49]}
10. Qe1 {[%clk 0:02:40.7]} 10... e5 {[%clk 0:02:48.4]} 11. Nxc6 {[%clk
0:02:34.4]} 11... bxc6 {[%clk 0:02:49.3]} 12. Bc5 {[%clk 0:02:34.4]} 12... Re8
{[%clk 0:02:47.3]} 13. exd5 {[%clk 0:01:54.3]} 13... cxd5 {[%clk 0:02:43]} 14.
Bb5 {[%clk 0:01:54.4]} 14... d4 {[%clk 0:02:23.5]} 15. Bxe8 {[%clk 0:01:52.2]}
15... Qxe8 {[%clk 0:02:24.4]} 16. Ne4 {[%clk 0:01:51.9]} 16... Nxe4 {[%clk
0:02:22.5]} 17. fxe4 {[%clk 0:01:52.8]} 17... Be6 {[%clk 0:02:14.6]} 18. a3
{[%clk 0:01:37.8]} 18... Rb8 {[%clk 0:02:07.1]} 19. Qa5 {[%clk 0:01:24.6]} 19...
Qc6 {[%clk 0:01:30.3]} 20. Qxa7 {[%clk 0:01:19.7]} 20... Rc8 {[%clk 0:01:27.6]}
21. b4 {[%clk 0:01:18.2]} 21... Ra8 {[%clk 0:01:26.7]} 22. Qb6 {[%clk
0:01:16.1]} 22... Qa4 {[%clk 0:01:23.1]} 23. b5 {[%clk 0:00:57.7]} 23... Bh6+
{[%clk 0:01:15.1]} 24. Kb2 {[%clk 0:00:55.7]} 24... Qc4 {[%clk 0:01:12.9]} 25.
Ra1 {[%clk 0:00:50]} 25... Bd2 {[%clk 0:01:11.3]} 26. Qb7 {[%clk 0:00:34.4]}
26... Rc8 {[%clk 0:01:09.3]} 0-1

[Event "Late-Titled-Tuesday-Blitz-February-20-2024"]
[Site "Chess.com"]
[Date "2024.02.20"]
[Round "7"]
[White "YurasovMat-2012"]
[Black "Taran2004"]
[Result "1-0"]
[WhiteElo "2608"]
[BlackElo "2430"]
[TimeControl "180+1"]
[EndTime "15:15:32 PST"]
[Termination "YurasovMat-2012 won by resignation"]

1. e4 {[%clk 0:03:00.9]} 1... c5 {[%clk 0:02:57.4]} 2. Nf3 {[%clk 0:03:01.8]}
2... d6 {[%clk 0:02:57.3]} 3. Bb5+ {[%clk 0:03:00]} 3... Bd7 {[%clk 0:02:57]} 4.
Bxd7+ {[%clk 0:02:59.9]} 4... Qxd7 {[%clk 0:02:57.9]} 5. O-O {[%clk 0:02:59.8]}
5... g6 {[%clk 0:02:57.4]} 6. Re1 {[%clk 0:03:00.7]} 6... Bg7 {[%clk 0:02:57.8]}
7. e5 {[%clk 0:03:00.9]} 7... dxe5 {[%clk 0:02:57.4]} 8. Nxe5 {[%clk 0:03:01.8]}
8... Qc7 {[%clk 0:02:57]} 9. Nf3 {[%clk 0:02:52.3]} 9... Nf6 {[%clk 0:02:55.7]}
10. d4 {[%clk 0:02:52.2]} 10... cxd4 {[%clk 0:02:55.4]} 11. Nxd4 {[%clk
0:02:52.6]} 11... O-O {[%clk 0:02:55.4]} 12. Qe2 {[%clk 0:02:52]} 12... e6
{[%clk 0:02:54.3]} 13. Nc3 {[%clk 0:02:50]} 13... a6 {[%clk 0:02:54.2]} 14. Qf3
{[%clk 0:02:48.3]} 14... Nc6 {[%clk 0:02:52]} 15. Nxc6 {[%clk 0:02:47.6]} 15...
bxc6 {[%clk 0:02:52.9]} 16. Bf4 {[%clk 0:02:47]} 16... Qb7 {[%clk 0:02:52.7]}
17. Be5 {[%clk 0:02:47]} 17... Nd5 {[%clk 0:02:48.6]} 18. Bxg7 {[%clk
0:02:46.6]} 18... Kxg7 {[%clk 0:02:49.5]} 19. Ne4 {[%clk 0:02:45.9]} 19... Qxb2
{[%clk 0:02:46.9]} 20. c4 {[%clk 0:02:45.2]} 20... Nf6 {[%clk 0:02:39.3]} 21.
Rab1 {[%clk 0:02:41.9]} 21... Qd4 {[%clk 0:02:35.8]} 22. Rbd1 {[%clk 0:02:38.7]}
22... Qb2 {[%clk 0:02:28]} 23. Re2 {[%clk 0:02:36.3]} 23... Qe5 {[%clk
0:02:27.9]} 24. Nd6 {[%clk 0:02:35.9]} 24... Qh5 {[%clk 0:02:21.2]} 25. Qe3
{[%clk 0:02:23]} 25... Rab8 {[%clk 0:02:13]} 26. h3 {[%clk 0:02:14.9]} 26...
Rfd8 {[%clk 0:01:40.1]} 27. g4 {[%clk 0:02:06.5]} 27... Nxg4 {[%clk 0:00:57.1]}
28. hxg4 {[%clk 0:02:00]} 28... Qxg4+ {[%clk 0:00:58]} 29. Kf1 {[%clk
0:01:56.3]} 29... Rb2 {[%clk 0:00:58.5]} 30. Qe5+ {[%clk 0:01:52.4]} 30... f6
{[%clk 0:00:55.5]} 31. Ne8+ {[%clk 0:01:24]} 31... Rxe8 {[%clk 0:00:35.2]} 32.
Rd7+ {[%clk 0:01:23]} 32... Kh6 {[%clk 0:00:24.9]} 33. Qxb2 {[%clk 0:01:19.8]}
33... Qh3+ {[%clk 0:00:24.8]} 34. Ke1 {[%clk 0:01:19.3]} 34... Qh1+ {[%clk
0:00:25.7]} 35. Kd2 {[%clk 0:01:18.5]} 35... Qf3 {[%clk 0:00:25.7]} 1-0

[Event "Late-Titled-Tuesday-Blitz-February-20-2024"]
[Site "Chess.com"]
[Date "2024.02.20"]
[Round "7"]
[White "SocoLoco"]
[Black "McCarthyStone"]
[Result "0-1"]
[WhiteElo "2209"]
[BlackElo "2370"]
[TimeControl "180+1"]
[EndTime "15:15:36 PST"]
[Termination "McCarthyStone won on time"]

1. e4 {[%clk 0:03:00.9]} 1... d5 {[%clk 0:02:59.6]} 2. exd5 {[%clk 0:02:59.8]}
2... Qxd5 {[%clk 0:03:00.5]} 3. Qf3 {[%clk 0:02:59.1]} 3... Qd6 {[%clk
0:02:47.3]} 4. c3 {[%clk 0:02:58.6]} 4... Nf6 {[%clk 0:02:45.6]} 5. d4 {[%clk
0:02:58.1]} 5... g6 {[%clk 0:02:43.2]} 6. Bd3 {[%clk 0:02:55.2]} 6... Bg7 {[%clk
0:02:43.1]} 7. Ne2 {[%clk 0:02:54.3]} 7... O-O {[%clk 0:02:41.7]} 8. O-O {[%clk
0:02:52.9]} 8... Nc6 {[%clk 0:02:41.7]} 9. a3 {[%clk 0:02:51.8]} 9... e5 {[%clk
0:02:41.6]} 10. Be3 {[%clk 0:02:25]} 10... e4 {[%clk 0:02:29.4]} 11. Bxe4 {[%clk
0:02:21.1]} 11... Bg4 {[%clk 0:02:29.3]} 12. Bf4 {[%clk 0:01:18.2]} 12... Qe7
{[%clk 0:02:05.5]} 13. Bxc6 {[%clk 0:00:52.5]} 13... Bxf3 {[%clk 0:02:00.4]} 14.
Bxf3 {[%clk 0:00:53.4]} 14... c6 {[%clk 0:02:00.6]} 15. Nd2 {[%clk 0:00:52]}
15... Nd5 {[%clk 0:01:58.5]} 16. Bg3 {[%clk 0:00:50.1]} 16... h5 {[%clk
0:01:56.5]} 17. h4 {[%clk 0:00:46.8]} 17... Bf6 {[%clk 0:01:55.1]} 18. c4 {[%clk
0:00:41.5]} 18... Nb6 {[%clk 0:01:45.3]} 19. a4 {[%clk 0:00:25.3]} 19... Bxh4
{[%clk 0:01:45.2]} 20. a5 {[%clk 0:00:25.5]} 20... Bxg3 {[%clk 0:01:45.1]} 21.
Nxg3 {[%clk 0:00:25.4]} 21... Nd7 {[%clk 0:01:43.5]} 22. Rfe1 {[%clk 0:00:25.4]}
22... Qb4 {[%clk 0:01:37.7]} 23. Re2 {[%clk 0:00:18.5]} 23... Rfe8 {[%clk
0:01:36]} 24. Nde4 {[%clk 0:00:15]} 24... Kg7 {[%clk 0:01:36.5]} 25. Rae1 {[%clk
0:00:13.4]} 25... Qxc4 {[%clk 0:01:33.4]} 26. Bxh5 {[%clk 0:00:10.7]} 26... gxh5
{[%clk 0:01:26.9]} 27. Nxh5+ {[%clk 0:00:11.6]} 27... Kh6 {[%clk 0:01:24.3]} 28.
g4 {[%clk 0:00:07.8]} 28... f5 {[%clk 0:01:23.6]} 29. Nd2 {[%clk 0:00:01.9]}
29... Rxe2 {[%clk 0:01:24.5]} 0-1